bitfinex/quotes_ETHUSD_20230113
["timestamp","ask_amount","ask_price","bid_price","bid_amount"]
[1673631182986,8.18794416,1418.4,1418.2,7.18213609]
[1673631183201,8.25394416,1418.4,1418.2,14.23332609]
[1673631183466,7.20113272,1418.4,1418.2,14.23332609]
[1673631183645,7.20113272,1418.4,1418.2,7.18213609]
[1673631184264,7.20113272,1418.4,1418.2,14.23332609]
[1673631185138,9.83316132,1418.4,1418.2,0.13094609]
[1673631185307,4.65914416,1418.3,1418.2,0.06494609]
[1673631185519,7.65914416,1418.3,1418.2,0.06494609]
[1673631185778,3.066,1418.3,1418.2,1.19394609]
[1673631185951,3.0,1418.3,1418.2,15.30532609]
[1673631186168,3.5948,1418.4,1418.2,22.42251609]
[1673631186397,7.13513272,1418.4,1418.2,22.42251609]
[1673631186636,7.20113272,1418.4,1418.2,22.42251609]
[1673631187368,7.72514416,1418.4,1418.2,22.42251609]
[1673631187967,6.67233272,1418.4,1418.2,22.42251609]
[1673631188172,0.066,1418.4,1418.2,27.11969745]
[1673631188413,1.11881144,1418.6,1418.4,28.20076]
[1673631188615,1.05281144,1418.6,1418.4,28.26676]
[1673631188787,19.89216,1418.7,1418.4,28.26676]
[1673631188993,19.89216,1418.7,1418.4,21.21657]
[1673631189265,1.05281144,1418.6,1418.4,21.21657]
[1673631189581,1.05281144,1418.6,1418.4,25.035027]
[1673631189889,1.05281144,1418.6,1418.4,25.03846496]
[1673631190263,4.05281144,1418.6,1418.4,25.03846496]
[1673631190486,4.05281144,1418.6,1418.4,17.98827496]
[1673631190784,1.05281144,1418.6,1418.4,25.03846496]
[1673631191000,1.05281144,1418.6,1418.5,2.5038465]
[1673631191206,1.05281144,1418.6,1418.5,21.1491]
[1673631191450,1.05281144,1418.6,1418.5,21.2151]
[1673631192045,1.05481144,1418.6,1418.5,21.2131]
[1673631192258,1.57921716,1418.6,1418.5,14.1654]
[1673631192812,2.63429948,1418.6,1418.5,14.1654]
[1673631193007,2.63429948,1418.6,1418.5,21.2151]
[1673631193270,1.05508232,1418.6,1418.5,14.1654]
[1673631193442,3.17343088,1418.7,1418.5,21.2151]
[1673631193656,3.10743088,1418.7,1418.5,21.2151]
[1673631193872,1.05508232,1418.6,1418.5,21.2151]
[1673631194420,1.05508232,1418.6,1418.5,14.1654]
[1673631194584,1.05508232,1418.6,1418.5,21.2151]
[1673631194793,1.05508232,1418.6,1418.5,14.1654]
[1673631195205,1.05508232,1418.6,1418.5,7.1157]
[1673631195414,1.05508232,1418.6,1418.5,7.1136544]
[1673631195622,2.63429948,1418.6,1418.5,7.1136544]
[1673631196074,2.63429948,1418.6,1418.5,14.1633544]
[1673631196266,1.05508232,1418.6,1418.5,14.1633544]
[1673631196516,1.05708232,1418.6,1418.5,14.1613544]
[1673631196727,1.05508232,1418.6,1418.5,7.1136544]
[1673631197091,1.05508232,1418.6,1418.5,14.1633544]
[1673631197840,2.63429948,1418.6,1418.5,7.1136544]
[1673631198053,5.45557983,1418.6,1418.5,0.066]
[1673631198374,5.45557983,1418.6,1418.3,7.11632]
[1673631198375,7.62787423,1418.6,1418.3,7.11632]
[1673631198573,1.05496221,1418.5,1418.3,0.066]
[1673631198847,1.05496221,1418.5,1418.3,7.05063]
[1673631199056,1.05696221,1418.5,1418.3,7.11463]
[1673631199394,1.05496221,1418.4,1418.3,0.066]
[1673631199671,1.05496221,1418.4,1418.2,14.23280609]
[1673631199836,1.05496221,1418.4,1418.3,14.10138]
[1673631200183,6.30651209,1418.5,1418.3,14.16738]
[1673631200391,1.05496221,1418.4,1418.3,14.16738]
[1673631201547,6.30651209,1418.5,1418.3,14.16738]
[1673631202193,6.30651209,1418.5,1418.3,21.21807]
[1673631202714,2.70017937,1418.5,1418.3,14.16738]
[1673631202946,1.12096221,1418.6,1418.5,21.1491]
[1673631203085,1.05496221,1418.6,1418.5,21.2151]
[1673631203302,2.63417937,1418.7,1418.5,21.22094571]
[1673631203666,2.63417937,1418.7,1418.5,25.76170308]
[1673631204037,1.05496221,1418.7,1418.5,25.76170308]
[1673631204399,1.05496221,1418.7,1418.6,1.583]
[1673631204675,1.12016522,1418.9,1418.7,29.7778]
[1673631204884,1.05416522,1418.9,1418.8,2.97778]
[1673631205204,1.05416522,1418.9,1418.8,17.07418]
[1673631205423,1.12016522,1419.0,1418.8,17.14018]
[1673631205610,1.05416522,1419.0,1418.8,18.72318]
[1673631206515,5.13338238,1419.0,1418.8,18.72318]
[1673631206729,5.19938238,1419.0,1418.9,1.872318]
[1673631206996,2.69938238,1419.0,1418.9,8.920028]
[1673631207179,2.69938238,1419.0,1418.9,8.986028]
[1673631207180,2.63338238,1419.0,1418.9,8.986028]
[1673631207400,1.57921716,1419.0,1418.9,0.066]
[1673631207606,1.57921716,1419.0,1418.8,7.07979892]
[1673631207826,1.0533617,1418.9,1418.8,7.07979892]
[1673631208357,1.0533617,1418.9,1418.8,8.26379892]
[1673631208528,1.0553617,1418.9,1418.8,8.26179892]
[1673631208745,1.0533617,1418.9,1418.8,17.54791881]
[1673631208977,2.63257886,1419.0,1418.8,24.59611881]
[1673631209811,6.23891158,1419.0,1418.8,0.03190892]
[1673631210145,1.05927098,1418.9,1418.7,0.03190892]
[1673631210375,1.05927098,1418.9,1418.7,7.04868]
[1673631210664,1.05927098,1418.9,1418.7,14.12928892]
[1673631210896,1.05927098,1418.9,1418.7,21.17798892]
[1673631211090,1.0533617,1418.9,1418.7,22.58317429]
[1673631211411,1.0533617,1418.9,1418.7,15.53447429]
[1673631211570,1.0533617,1418.9,1418.7,22.58317429]
[1673631211778,1.0533617,1418.9,1418.7,23.77317429]
[1673631212715,1.0533617,1418.9,1418.7,9.67577429]
[1673631212960,1.0533617,1418.9,1418.7,8.27058892]
[1673631213183,1.0533617,1418.9,1418.7,15.31928892]
[1673631213778,1.0533617,1418.9,1418.7,8.27058892]
[1673631213991,1.0533617,1418.9,1418.7,1.22190892]
[1673631214254,1.0533617,1418.8,1418.6,1.21590892]
[1673631214564,3.5533617,1418.8,1418.6,1.184]
[1673631214771,1.0533617,1418.8,1418.6,1.184]
[1673631214936,2.63257886,1418.9,1418.6,24.26672163]
[1673631215146,2.63257886,1418.9,1418.6,24.29863055]
[1673631215491,1.0533617,1418.9,1418.6,24.29863055]
[1673631219078,2.63257886,1418.9,1418.6,24.29863055]
[1673631219245,1.0533617,1418.8,1418.6,24.29863055]
[1673631219915,1.0533617,1418.8,1418.6,17.24943055]
[1673631220125,1.0533617,1418.8,1418.6,15.31429892]
[1673631220650,1.0533617,1418.8,1418.6,14.13029892]
[1673631220863,2.63257886,1418.8,1418.6,14.13029892]
[1673631221237,1.0533617,1418.8,1418.6,7.08109892]
[1673631221447,2.63257886,1418.8,1418.6,7.08109892]
[1673631221656,2.63257886,1418.8,1418.6,14.13029892]
[1673631222403,3.5533617,1418.7,1418.6,0.03190892]
[1673631222612,19.22997886,1418.7,1418.4,14.37940892]
[1673631222829,12.24727886,1418.7,1418.4,21.42950892]
[1673631223229,9.74727886,1418.7,1418.4,8.26200892]
[1673631224105,12.24727886,1418.7,1418.4,8.26200892]
[1673631224333,3.5533617,1418.6,1418.4,8.26200892]
[1673631224546,1.0533617,1418.6,1418.4,8.26200892]
[1673631224918,1.0533617,1418.6,1418.4,7.08200892]
[1673631226481,1.0553617,1418.6,1418.4,7.08000892]
[1673631226745,1.0533617,1418.6,1418.4,21.18238892]
[1673631228492,1.57921716,1418.7,1418.4,21.18238892]
[1673631228493,2.63257886,1418.7,1418.4,21.18238892]
[1673631228702,6.23891158,1418.7,1418.4,21.18238892]
[1673631228945,1.0533617,1418.6,1418.4,21.18238892]
[1673631229264,6.30491158,1418.7,1418.4,21.18238892]
[1673631229806,6.30491158,1418.7,1418.4,21.18029117]
[1673631230227,1.1193617,1418.7,1418.5,1.188]
[1673631230379,1.1193617,1418.7,1418.6,26.1354]
[1673631230380,1.0533617,1418.7,1418.6,26.1354]
[1673631230590,1.57921716,1418.8,1418.6,26.16521117]
[1673631230591,1.0533617,1418.8,1418.6,26.16521117]
[1673631230906,3.17171026,1418.9,1418.6,24.98621117]
[1673631231151,1.50150913,1418.9,1418.7,2.49862112]
[1673631231344,33.06938438,1419.0,1418.8,30.5718]
[1673631231556,33.06938438,1419.0,1418.8,8.26701117]
[1673631231557,1.05416722,1418.9,1418.8,8.26701117]
[1673631231750,1.05416722,1418.9,1418.8,9.44601117]
[1673631231955,1.05416722,1418.9,1418.8,11.3453374]
[1673631232342,2.63338438,1418.9,1418.8,3.1181374]
[1673631232636,2.63338438,1418.9,1418.8,1.189]
[1673631234580,1.05416722,1418.9,1418.8,1.189]
[1673631234946,2.63338438,1418.9,1418.8,1.189]
[1673631235524,5.13338438,1418.9,1418.8,1.189]
[1673631235734,1.64521716,1418.9,1418.8,1.189]
[1673631235990,1.57921716,1418.9,1418.8,1.189]
[1673631236726,8.62692716,1418.9,1418.8,1.189]
[1673631236941,8.62692716,1418.9,1418.7,1.183]
[1673631236942,8.69292716,1418.9,1418.7,1.183]
[1673631237154,1.05420904,1418.8,1418.7,1.183]
[1673631239790,1.05420904,1418.9,1418.7,8.2317]
[1673631239937,1.05420904,1418.9,1418.8,1.188]
[1673631240150,2.63358043,1418.9,1418.8,1.188]
[1673631240353,2.63358043,1418.9,1418.8,23.15925112]
[1673631240354,1.05436327,1418.9,1418.8,23.15925112]
[1673631240613,1.05436327,1418.9,1418.8,23.18906229]
[1673631240844,2.63358043,1418.9,1418.8,23.18906229]
[1673631240990,1.05436327,1418.9,1418.8,23.18906229]
[1673631241620,1.05436327,1418.9,1418.8,22.36241117]
[1673631242309,2.63358043,1418.9,1418.8,22.36241117]
[1673631243741,1.05436327,1418.9,1418.8,22.36241117]
[1673631244515,3.16218043,1419.0,1418.8,22.36241117]
[1673631244834,1.05436327,1418.9,1418.8,25.30352229]
[1673631249312,2.63358043,1418.9,1418.8,22.36241117]
[1673631250013,2.63358043,1418.9,1418.8,15.31421117]
[1673631250556,2.63358043,1418.9,1418.8,8.26601117]
[1673631250976,2.63358043,1418.9,1418.8,1.21781117]
[1673631251190,4.16609904,1418.9,1418.7,7.07824117]
[1673631251428,4.16609904,1418.9,1418.7,0.02981117]
[1673631251429,1.05478705,1418.8,1418.7,0.02981117]
[1673631251639,1.05478705,1418.8,1418.7,21.1461]
[1673631251857,1.05478705,1418.8,1418.7,21.17591117]
[1673631252766,1.05478705,1418.8,1418.7,7.07851117]
[1673631252767,2.63400421,1418.8,1418.7,7.07851117]
[1673631253979,2.63400421,1418.8,1418.7,0.02981117]
[1673631254132,2.63400421,1418.8,1418.7,7.0487]
[1673631254498,1.57921716,1418.8,1418.7,7.07851117]
[1673631254686,1.57921716,1418.8,1418.7,7.07556966]
[1673631255321,1.57921716,1418.8,1418.7,0.02981117]
[1673631255536,1.57921716,1418.8,1418.6,21.17670117]
[1673631255704,1.05485115,1418.7,1418.6,21.17670117]
[1673631256338,1.57921716,1418.8,1418.6,21.17670117]
[1673631256339,2.63406831,1418.8,1418.6,21.17670117]
[1673631256773,1.05485115,1418.7,1418.6,21.17670117]
[1673631257654,1.05485115,1418.7,1418.6,0.02981117]
[1673631257864,1.05485115,1418.7,1418.6,7.0492]
[1673631258080,1.05485115,1418.7,1418.6,0.02981117]
[1673631258281,1.05485115,1418.7,1418.6,7.0492]
[1673631258506,1.05485115,1418.7,1418.6,0.02981117]
[1673631258821,1.05485115,1418.7,1418.5,0.02981117]
[1673631258822,2.6340615,1418.7,1418.5,0.02981117]
[1673631258979,6.24040421,1418.7,1418.5,14.09937]
[1673631259194,6.30640421,1418.7,1418.5,14.12918117]
[1673631260083,4.72718705,1418.7,1418.5,14.12918117]
[1673631260272,6.24040421,1418.7,1418.5,14.12918117]
[1673631260447,4.72718705,1418.7,1418.5,14.12918117]
[1673631260662,4.66118705,1418.7,1418.5,14.12918117]
[1673631261553,4.66118705,1418.7,1418.5,21.17888117]
[1673631262352,3.60633272,1418.7,1418.5,21.17888117]
[1673631262563,4.66118705,1418.7,1418.5,21.17888117]
[1673631264162,6.24040421,1418.7,1418.5,21.17888117]
[1673631264497,6.30640421,1418.7,1418.5,14.12918117]
[1673631264882,6.30640421,1418.7,1418.5,21.17888117]
[1673631265307,6.30640421,1418.7,1418.5,14.12918117]
[1673631265539,3.60633272,1418.6,1418.5,0.02981117]
[1673631265720,4.66118705,1418.6,1418.5,7.04962]
[1673631265941,4.66118705,1418.6,1418.5,7.07943117]
[1673631266766,6.24040421,1418.6,1418.5,7.07943117]
[1673631266975,6.30640421,1418.6,1418.5,7.07943117]
[1673631267761,6.30640421,1418.6,1418.5,0.02981117]
[1673631267951,6.30640421,1418.6,1418.4,7.07952117]
[1673631268530,6.30640421,1418.6,1418.4,7.07995117]
[1673631269470,4.72718705,1418.6,1418.4,21.18033117]
[1673631269641,4.66118705,1418.6,1418.4,21.18033117]
[1673631270578,4.66118705,1418.6,1418.4,7.07995117]
[1673631271018,6.24040421,1418.6,1418.4,7.07995117]
[1673631271241,6.30640421,1418.6,1418.4,14.13014117]
[1673631271639,6.30640421,1418.6,1418.4,7.07995117]
[1673631272307,6.30640421,1418.6,1418.4,21.18033117]
[1673631272525,4.72718705,1418.6,1418.4,21.18033117]
[1673631272830,4.66118705,1418.6,1418.4,14.13014117]
[1673631275026,6.24040421,1418.6,1418.4,14.13014117]
[1673631275200,6.30640421,1418.6,1418.4,7.07995117]
[1673631276469,3.55485433,1418.5,1418.4,7.07995117]
[1673631276775,6.30640421,1418.6,1418.4,14.13014117]
[1673631277441,6.30640421,1418.6,1418.4,7.07995117]
[1673631277844,6.30640421,1418.6,1418.4,0.02981117]
[1673631278074,6.30640421,1418.6,1418.3,29.50437117]
[1673631278446,6.30640421,1418.6,1418.3,21.17791373]
[1673631279421,4.72718705,1418.6,1418.3,21.17791373]
[1673631279608,4.66118705,1418.6,1418.3,21.17791373]
[1673631281940,6.24040421,1418.6,1418.3,21.17791373]
[1673631282152,6.30640421,1418.6,1418.3,21.17791373]
[1673631284095,6.83520421,1418.6,1418.3,21.17791373]
[1673631284660,1.05485433,1418.5,1418.3,21.17791373]
[1673631285085,6.83520421,1418.6,1418.3,21.17791373]
[1673631285735,1.05485433,1418.5,1418.3,21.17791373]
[1673631286136,4.66118705,1418.5,1418.3,21.17791373]
[1673631286775,1.05485433,1418.5,1418.3,21.17791373]
[1673631287241,3.16287149,1418.6,1418.3,21.17791373]
[1673631287391,6.76920421,1418.6,1418.3,21.17791373]
[1673631287603,6.83520421,1418.6,1418.3,21.17791373]
[1673631288806,1.05485433,1418.5,1418.3,21.17791373]
[1673631289809,4.66118705,1418.5,1418.3,21.17791373]
[1673631290235,1.05485433,1418.5,1418.3,21.17791373]
[1673631291387,2.63407149,1418.6,1418.3,21.17791373]
[1673631291964,1.05485433,1418.5,1418.3,21.17791373]
[1673631296956,1.05485433,1418.5,1418.3,23.37991895]
[1673631301518,1.05485433,1418.5,1418.3,21.17791373]
[1673631301727,1.05485433,1418.5,1418.3,27.53559658]
[1673631302041,2.63407149,1418.6,1418.3,28.58943347]
[1673631302623,1.05485433,1418.5,1418.3,27.53559658]
[1673631302912,1.05485433,1418.5,1418.4,21.15057]
[1673631303086,1.57921716,1418.5,1418.4,14.13019117]
[1673631303301,3.11661278,1418.5,1418.4,14.13019117]
[1673631303491,4.17337007,1418.5,1418.4,14.13019117]
[1673631304357,2.11351632,1418.5,1418.4,21.18038117]
[1673631304573,2.10961085,1418.5,1418.4,22.9293955]
[1673631304729,1.05285356,1418.5,1418.4,22.9293955]
[1673631305056,1.05285356,1418.5,1418.4,25.13279981]
[1673631308851,1.05285356,1418.5,1418.4,22.9293955]
[1673631309186,1.05285356,1418.5,1418.4,26.37179543]
[1673631315269,1.05285356,1418.5,1418.4,27.42563232]
[1673631315678,1.05285356,1418.5,1418.4,26.37179543]
[1673631317545,1.05285356,1418.5,1418.4,27.56179543]
[1673631317751,3.56e-06,1418.5,1418.4,32.5695867]
[1673631318082,3.56e-06,1418.5,1418.4,33.71915412]
[1673631318240,3.56e-06,1418.5,1418.4,34.76705827]
[1673631318404,3.56e-06,1418.5,1418.4,33.71915412]
[1673631319280,3.56e-06,1418.5,1418.4,54.73765412]
[1673631319690,3.56e-06,1418.5,1418.4,56.85351427]
[1673631319912,3.56e-06,1418.5,1418.4,55.66351427]
[1673631320296,3.56e-06,1418.5,1418.4,53.54765412]
[1673631321178,3.56e-06,1418.5,1418.4,53.01116733]
[1673631321352,3.56e-06,1418.5,1418.4,54.59512171]
[1673631321564,3.56e-06,1418.5,1418.4,53.01116733]
[1673631326760,3.56e-06,1418.5,1418.4,54.59512171]
[1673631327284,2.57556192,1419.0,1418.5,7.04967644]
[1673631327285,1.58535729,1419.0,1418.5,7.04967644]
[1673631327593,1.58535729,1419.0,1418.9,21.14313]
[1673631327804,1.58535729,1419.0,1418.9,21.17294117]
[1673631328426,0.5286,1419.0,1418.9,21.17294117]
[1673631328637,1.71327503,1419.1,1418.9,21.17294117]
[1673631328852,1.05675729,1419.0,1418.9,21.17294117]
[1673631329473,6.96482491,1419.1,1418.9,21.17294117]
[1673631329649,1.05675729,1419.0,1418.9,21.17294117]
[1673631330329,6.96482491,1419.1,1418.9,21.17294117]
[1673631330654,1.77927503,1419.1,1418.9,21.17294117]
[1673631330833,1.71327503,1419.1,1418.9,23.99500729]
[1673631331431,3.29449219,1419.1,1418.9,23.99300729]
[1673631331641,3.29249219,1419.1,1418.9,23.99500729]
[1673631332087,1.18467503,1419.1,1418.9,23.99500729]
[1673631332800,1.18467503,1419.1,1419.0,2.39950073]
[1673631333008,1.18467503,1419.1,1419.0,21.14163]
[1673631333248,1.18467503,1419.1,1419.0,21.17144117]
[1673631334475,0.12791774,1419.1,1419.0,21.17144117]
[1673631336713,0.12791774,1419.1,1419.0,7.07702117]
[1673631336967,1.71327503,1419.1,1419.0,7.07702117]
[1673631337143,1.71327503,1419.1,1419.0,14.12423117]
[1673631337831,1.71327503,1419.1,1419.0,21.17144117]
[1673631338312,1.71327503,1419.1,1419.0,14.12423117]
[1673631338466,0.12791774,1419.1,1419.0,14.12423117]
[1673631339984,1.51391425,1419.1,1419.0,0.02981117]
[1673631340218,1.51391425,1419.1,1418.9,21.17199117]
[1673631340585,1.18667503,1419.1,1418.9,21.16999117]
[1673631340826,1.18467503,1419.1,1418.9,21.17199117]
[1673631341038,1.18467503,1419.1,1418.9,0.02981117]
[1673631341219,1.18467503,1419.1,1418.8,22.46319117]
[1673631341437,4.79100775,1419.1,1418.8,14.12589117]
[1673631341627,0.47910078,1419.0,1418.8,21.17409117]
[1673631341833,2.97910078,1419.0,1418.8,21.17409117]
[1673631342253,0.47910078,1419.0,1418.8,21.17409117]
[1673631343634,2.97910078,1419.0,1418.8,14.12589117]
[1673631343879,4.03585807,1419.0,1418.8,14.12589117]
[1673631344246,1.53585807,1419.0,1418.8,14.12589117]
[1673631344666,4.03585807,1419.0,1418.8,14.12589117]
[1673631345298,1.53585807,1419.0,1418.8,14.12589117]
[1673631345508,3.75991853,1418.9,1418.8,0.02981117]
[1673631345723,6.00667582,1418.9,1418.7,0.02981117]
[1673631345963,3.60633272,1418.8,1418.6,7.07867117]
[1673631346153,3.60633272,1418.8,1418.6,0.02981117]
[1673631346371,3.60633272,1418.8,1418.5,21.17851117]
[1673631346612,3.60833272,1418.8,1418.5,21.17651117]
[1673631346819,10.65466272,1418.8,1418.5,7.07929117]
[1673631347006,10.72066272,1418.8,1418.5,7.07929117]
[1673631347685,4.72909001,1418.8,1418.5,14.12899117]
[1673631347849,5.19179001,1418.8,1418.5,21.17869117]
[1673631348225,0.5947,1418.8,1418.5,21.17869117]
[1673631348429,9.44255729,1418.9,1418.5,23.41001416]
[1673631348583,13.04889001,1418.9,1418.5,23.41001416]
[1673631348789,1.65135729,1418.9,1418.5,32.33869955]
[1673631349000,7.87551156,1419.0,1418.7,1.04684252]
[1673631349001,0.066,1419.0,1418.7,1.04684252]
[1673631349212,0.12791774,1419.1,1418.7,30.98978058]
[1673631349461,0.12791774,1419.1,1419.0,14.09442]
[1673631349703,0.12791774,1419.1,1419.0,14.12423117]
[1673631351581,0.12791774,1419.1,1419.0,16.49523117]
[1673631351750,0.12791774,1419.1,1419.0,18.99523117]
[1673631352192,0.12791774,1419.1,1419.0,16.49523117]
[1673631352402,0.12450259,1419.1,1419.0,19.87987344]
[1673631352746,0.12450259,1419.1,1419.0,19.88187344]
[1673631352958,0.12450259,1419.1,1419.0,26.92908344]
[1673631353361,0.12450259,1419.1,1419.0,28.67715161]
[1673631353685,0.12450259,1419.1,1419.0,28.67716821]
[1673631354059,0.12450259,1419.1,1419.0,28.67717326]
[1673631354265,0.12450259,1419.1,1419.0,28.72677353]
[1673631355328,0.12450259,1419.1,1419.0,43.12154877]
[1673631355684,0.13466806,1419.3,1419.2,28.18488]
[1673631355880,0.13466806,1419.3,1419.2,33.66112205]
[1673631358795,8.06e-06,1419.3,1419.2,33.66112205]
[1673631361570,8.06e-06,1419.3,1419.2,36.66112205]
[1673631361875,8.06e-06,1419.3,1419.2,45.37922205]
[1673631362034,8.06e-06,1419.3,1419.2,44.20022205]
[1673631362879,8.06e-06,1419.3,1419.2,45.38922205]
[1673631363383,8.06e-06,1419.3,1419.2,45.91772205]
[1673631363576,8.06e-06,1419.3,1419.2,45.38922205]
[1673631364069,8.06e-06,1419.3,1419.2,45.38722205]
[1673631364239,8.06e-06,1419.3,1419.2,45.38922205]
[1673631365934,8.06e-06,1419.3,1419.2,42.38922205]
[1673631366148,8.06e-06,1419.3,1419.2,36.93279117]
[1673631366342,8.06e-06,1419.3,1419.2,38.12279117]
[1673631368150,8.06e-06,1419.3,1419.2,39.31179117]
[1673631368369,8.06e-06,1419.3,1419.2,49.58801117]
[1673631369280,8.06e-06,1419.3,1419.2,49.61471117]
[1673631369609,8.06e-06,1419.3,1419.2,59.62215789]
[1673631371208,0.12791774,1419.4,1419.3,2.26899194]
[1673631371415,0.12791774,1419.4,1419.3,25.78615194]
[1673631371661,0.12791774,1419.4,1419.3,28.81596311]
[1673631372155,0.13043581,1419.6,1419.5,2.5]
[1673631372365,0.13043581,1419.6,1419.5,33.04992]
[1673631372542,0.13043581,1419.6,1419.5,33.07973117]
[1673631372884,0.13043581,1419.6,1419.5,29.38973117]
[1673631373082,0.13043581,1419.6,1419.5,37.73513117]
[1673631373298,0.13043581,1419.6,1419.5,43.25128392]
[1673631374517,0.13043581,1419.6,1419.5,34.90588392]
[1673631374783,0.13043581,1419.6,1419.5,21.16400117]
[1673631376161,0.13043581,1419.6,1419.5,22.34600117]
[1673631377836,5.81e-06,1419.6,1419.5,22.34600117]
[1673631378016,0.14879277,1419.7,1419.5,22.34600117]
[1673631378211,0.14879277,1419.7,1419.6,1.19]
[1673631378480,0.14879277,1419.7,1419.6,26.09672339]
[1673631378633,2.77e-06,1419.7,1419.6,29.12653456]
[1673631379140,0.13256501,1419.9,1419.6,29.12653456]
[1673631379347,0.13256501,1419.9,1419.8,1.182]
[1673631379717,0.13256501,1419.9,1419.8,30.65716]
[1673631379877,0.13256501,1419.9,1419.8,30.68697117]
[1673631380087,0.066,1420.1,1419.9,2.632]
[1673631380315,0.13256501,1420.2,1420.0,33.539]
[1673631380548,0.13256501,1420.2,1420.1,4.5439]
[1673631380773,0.13256501,1420.2,1420.1,25.3174]
[1673631381080,0.14868535,1420.4,1420.3,28.16304]
[1673631381293,0.14868535,1420.4,1420.3,32.97818389]
[1673631381501,0.18842517,1420.9,1420.3,37.38818389]
[1673631381720,0.18842517,1420.9,1420.5,1.19]
[1673631381929,0.18842517,1420.9,1420.6,8.21818]
[1673631382265,0.18842517,1420.9,1420.8,23.49484]
[1673631382415,0.18842517,1420.9,1420.8,23.52465117]
[1673631382600,0.18842517,1420.9,1420.8,9.33509117]
[1673631382810,0.18842517,1420.9,1420.8,10.94352912]
[1673631383074,0.18842517,1420.9,1420.8,13.31152912]
[1673631383605,0.18842517,1421.0,1420.9,2.5]
[1673631383606,5.17e-06,1421.0,1420.9,2.5]
[1673631383914,0.19179646,1421.2,1420.9,15.26558]
[1673631384130,0.71959646,1421.2,1420.9,15.33158]
[1673631384288,0.71959646,1421.2,1420.9,7.10379]
[1673631384289,1.45275611,1421.2,1420.9,7.10379]
[1673631384502,0.5278,1421.1,1420.9,0.066]
[1673631384705,2.5,1421.0,1420.8,0.066]
[1673631385079,1.19,1420.9,1420.5,0.066]
[1673631385234,1.179,1420.8,1420.4,7.10625]
[1673631385450,1.179,1420.8,1420.5,7.03975]
[1673631385689,0.528,1420.7,1420.5,7.10575]
[1673631386232,0.5279,1420.8,1420.5,14.14552]
[1673631386445,0.5279,1420.9,1420.5,14.14552]
[1673631386598,0.5279,1420.9,1420.6,1.414552]
[1673631386811,1.7129,1420.9,1420.7,14.07756]
[1673631387153,1.7129,1420.9,1420.7,14.14356]
[1673631388213,1.19,1420.8,1420.7,0.066]
[1673631388550,3.69,1420.8,1420.5,7.03961]
[1673631388696,4.20023272,1420.9,1420.5,16.5380246]
[1673631388697,0.5939,1420.9,1420.5,16.5380246]
[1673631389075,5.32423272,1420.9,1420.5,14.16628]
[1673631389218,8.39023272,1420.9,1420.5,14.16628]
[1673631389435,2.5,1420.8,1420.5,7.12651]
[1673631389964,0.528,1420.7,1420.5,7.12651]
[1673631390392,0.528,1420.7,1420.5,14.16628]
[1673631391114,1.186,1420.6,1420.5,0.0869]
[1673631391319,4.02813272,1420.7,1420.5,8.19855]
[1673631391320,1.251,1420.7,1420.5,8.19855]
[1673631391535,13.6627,1420.9,1420.5,24.84409]
[1673631391536,0.066,1420.9,1420.5,24.84409]
[1673631391745,16.9136,1421.0,1420.7,7.03868]
[1673631392010,0.066,1421.0,1420.7,28.22072]
[1673631392291,30.62779646,1421.2,1420.9,1.19]
[1673631392517,0.25779646,1421.2,1421.0,28.26816]
[1673631392739,0.19179646,1421.2,1421.0,21.29687]
[1673631393267,0.18979646,1421.2,1421.0,21.29687]
[1673631393426,0.18979646,1421.2,1421.0,28.33416]
[1673631393661,0.18979646,1421.2,1421.1,2.833416]
[1673631393875,0.18979646,1421.2,1421.1,16.907016]
[1673631394138,0.18979646,1421.2,1421.1,16.973016]
[1673631395887,0.18979646,1421.2,1421.1,14.1396]
[1673631397991,0.19179646,1421.2,1421.1,14.1376]
[1673631398229,0.18979646,1421.2,1421.1,14.1396]
[1673631398552,0.18979646,1421.2,1421.1,21.1764]
[1673631400136,3.19705124,1421.4,1421.1,21.1764]
[1673631400282,0.19705124,1421.4,1421.3,28.14324]
[1673631400500,0.19705124,1421.4,1421.3,28.20924]
[1673631400710,0.19705124,1421.4,1421.3,21.17343]
[1673631401481,0.19705124,1421.4,1421.3,18.37986281]
[1673631401924,0.19705124,1421.4,1421.3,0.066]
[1673631402076,0.19705124,1421.4,1421.2,7.03626]
[1673631402077,1.47929694,1421.4,1421.2,7.03626]
[1673631402285,0.5277,1421.3,1421.2,2.333]
[1673631402650,1.48520622,1421.4,1421.2,2.333]
[1673631402651,1.91475124,1421.4,1421.2,23.3759]
[1673631402962,1.91475124,1421.4,1421.2,21.1749]
[1673631403335,0.19705124,1421.4,1421.2,21.1749]
[1673631403545,0.19705124,1421.4,1421.3,23.22492]
[1673631403762,0.19705124,1421.4,1421.3,23.29092]
[1673631404004,0.19705124,1421.4,1421.3,14.13762]
[1673631404631,0.19705124,1421.4,1421.3,7.10181]
[1673631404632,1.37605124,1421.4,1421.3,7.10181]
[1673631405436,1.37605124,1421.4,1421.3,14.13762]
[1673631405694,0.19705124,1421.4,1421.3,21.17343]
[1673631405901,1.24e-06,1421.4,1421.3,21.17343]
[1673631406109,1.24e-06,1421.4,1421.3,23.994403]
[1673631407544,1.70670124,1421.4,1421.3,0.066]
[1673631407808,1.70670124,1421.4,1421.1,14.18727]
[1673631408116,1.24e-06,1421.4,1421.1,21.22407]
[1673631408282,4.3757977,1421.5,1421.1,21.22407]
[1673631409010,0.5277,1421.4,1421.1,21.22407]
[1673631409220,4.3757977,1421.5,1421.1,21.22407]
[1673631409221,4.9694977,1421.5,1421.2,2.122407]
[1673631409582,4.9694977,1421.5,1421.3,21.10743]
[1673631409583,4.9034977,1421.5,1421.3,21.10743]
[1673631409801,3.7174977,1421.5,1421.3,21.17343]
[1673631410111,0.1897977,1421.5,1421.3,21.17343]
[1673631411265,0.1897977,1421.5,1421.3,14.13762]
[1673631411483,0.1897977,1421.5,1421.3,21.17343]
[1673631411792,0.1897977,1421.5,1421.3,23.994385]
[1673631412621,0.1897977,1421.5,1421.3,21.17343]
[1673631413461,0.1897977,1421.5,1421.3,21.47343]
[1673631413854,1.3787977,1421.5,1421.3,21.47343]
[1673631414696,1.3787977,1421.5,1421.3,0.366]
[1673631414697,4.78533272,1421.4,1421.3,0.366]
[1673631414930,9.99254576,1421.4,1421.3,0.3]
[1673631415137,10.05854576,1421.4,1421.3,0.3]
[1673631415994,12.55854576,1421.4,1421.3,0.3]
[1673631416419,48.84347576,1421.4,1421.3,0.24351725]
[1673631416581,52.43218941,1421.4,1421.3,0.13199335]
[1673631416788,51.37543212,1421.4,1421.3,0.13199335]
[1673631417062,55.60343212,1421.4,1421.3,0.13199335]
[1673631417244,2.5,1421.3,1421.1,0.0481]
[1673631417437,2.38,1421.2,1421.1,0.0481]
[1673631417639,0.066,1421.3,1421.1,7.0849]